fUST/lending_fUST_20260330
["ID","MTS","AMOUNT","RATE_DAILY","PERIOD"]
[419096200,1774873838350,-7272.0316508,0.00026929,2]
[419096202,1774873838360,-151.0,0.00026938,2]
[419096204,1774873838370,-151.0,0.00026938,2]
[419096205,1774873838381,-500.0,0.00026938,2]
[419096207,1774873838391,-235.55144148,0.00026938,2]
[419096208,1774873838402,-500.0,0.00026938,2]
[419096209,1774873838412,-524.73072817,0.00026938,2]
[419096210,1774873838422,-500.0,0.00026938,2]
[419096211,1774873838432,-500.0,0.00026938,2]
[419096212,1774873838442,-500.0,0.00026938,2]
[419096213,1774873838453,-500.0,0.00026938,2]
[419096214,1774873838462,-501.33229347,0.00026938,2]
[419096215,1774873838472,-500.0,0.00026938,2]
[419096216,1774873838482,-167.66975856,0.00026938,2]
[419096217,1774873838491,-500.0,0.00026938,2]
[419096218,1774873838501,-500.0,0.00026938,2]
[419096219,1774873838511,-500.0,0.00026938,2]
[419096220,1774873838522,-500.0,0.00026938,2]
[419096221,1774873838532,-500.0,0.00026938,2]
[419096222,1774873838541,-500.0,0.00026938,2]
[419096223,1774873838552,-500.0,0.00026938,2]
[419096224,1774873838562,-500.0,0.00026938,2]
[419096225,1774873838572,-500.0,0.00026938,2]
[419096226,1774873838581,-500.0,0.00026938,2]
[419096227,1774873838590,-500.0,0.00026938,2]
[419096228,1774873838600,-500.0,0.00026938,2]
[419096229,1774873838610,-500.0,0.00026938,2]
[419096230,1774873838620,-500.0,0.00026938,2]
[419096231,1774873838630,-500.0,0.00026938,2]
[419096232,1774873838640,-500.0,0.00026938,2]
[419096233,1774873838650,-500.0,0.00026938,2]
[419096234,1774873838660,-452.62312679,0.00026938,2]
[419096235,1774873838670,-500.0,0.00026938,2]
[419096236,1774873838679,-500.0,0.00026938,2]
[419096237,1774873838689,-500.0,0.00026938,2]
[419096238,1774873838699,-500.0,0.00026938,2]
[419096239,1774873838710,-500.0,0.00026938,2]
[419096240,1774873838719,-303.0741621,0.00026938,2]
[419096241,1774873838730,-500.0,0.00026938,2]
[419096242,1774873838740,-500.0,0.00026938,2]
[419096243,1774873838750,-500.0,0.00026938,2]
[419096244,1774873838760,-500.0,0.00026938,2]
[419096245,1774873838771,-500.0,0.00026938,2]
[419096246,1774873838781,-500.0,0.00026938,2]
[419096247,1774873838791,-500.0,0.00026938,2]
[419096248,1774873838802,-500.0,0.00026938,2]
[419096249,1774873838813,-500.0,0.00026938,2]
[419096250,1774873838824,-500.0,0.00026938,2]
[419096251,1774873838834,-500.0,0.00026938,2]
[419096252,1774873838844,-500.0,0.00026938,2]
[419096253,1774873838855,-500.0,0.00026938,2]
[419096254,1774873838866,-500.0,0.00026938,2]
[419096255,1774873838876,-500.0,0.00026938,2]
[419096256,1774873838886,-500.0,0.00026938,2]
[419096257,1774873838896,-500.0,0.00026938,2]
[419096258,1774873838907,-500.0,0.00026938,2]
[419096259,1774873838918,-500.0,0.00026938,2]
[419096260,1774873838927,-563.40080248,0.00026938,2]
[419096261,1774873838937,-500.0,0.00026938,2]
[419096262,1774873838949,-500.0,0.00026938,2]
[419096263,1774873838958,-500.0,0.00026938,2]
[419096264,1774873838968,-500.0,0.00026938,2]
[419096265,1774873838978,-500.0,0.00026938,2]
[419096266,1774873838988,-151.0,0.00026939,2]
[419096267,1774873838997,-128662.51266591,0.00026939,2]
[419096341,1774873840588,-6423.94677741,0.00026939,2]
[419096347,1774873840643,-671.77936835,0.00026939,2]
[419096349,1774873840655,-3924.9608205,0.00026939,2]
[419096388,1774873843295,-41400.0000004,0.00026939,2]
[419096389,1774873843306,-66002.64319968,0.00026939,2]
[419096390,1774873843455,-1563.83098617,0.00026939,2]
[419096430,1774873846172,-1486.46262522,0.00026939,2]
[419096453,1774873846394,-136137.65654105,0.00026939,2]
[419096455,1774873846404,-9363.34716082,0.00026939,2]
[419096703,1774874380291,1171.58,0.000328,120]
[419096741,1774875032041,-299.44209001,0.00013699,2]
[419096746,1774875038174,-700.55790999,0.00013699,2]
[419096747,1774875038186,-615.0,0.00013699,2]
[419096748,1774875038197,-576.0,0.000209,2]
[419096749,1774875038209,-157.0,0.00021671,5]
[419096750,1774875038220,-576.0,0.000219,2]
[419096751,1774875038232,-313.0,0.00022,2]
[419096752,1774875038244,-576.0,0.000229,2]
[419096753,1774875038254,-313.0,0.00023,2]
[419096754,1774875038265,-314.22456304,0.00023222,2]
[419096755,1774875038276,-576.0,0.000239,2]
[419096756,1774875038286,-313.0,0.00024,2]
[419096757,1774875038296,-3879.3284297,0.0002434,2]
[419096758,1774875038306,-576.0,0.000249,2]
[419096759,1774875038316,-1000.0,0.00024979,30]
[419096760,1774875038326,-313.0,0.00025,2]
[419096761,1774875038338,-576.0,0.000259,2]
[419096762,1774875038347,-2000.0,0.00026,14]
[419096763,1774875038358,-2000.0,0.00026,14]
[419096764,1774875038368,-2000.0,0.00026,14]
[419096765,1774875038380,-2000.0,0.00026,14]
[419096766,1774875038390,-1791.91,0.00026,14]
[419096767,1774875038401,-313.0,0.00026,2]
[419096768,1774875038411,-303.07094286,0.00026406,2]
[419096769,1774875038422,-176.19316576,0.00026429,5]
[419096770,1774875038432,-783.1909136,0.000266,99]
[419096771,1774875038442,-151.97493871,0.00026628,2]
[419096772,1774875038452,-156.587,0.00026712,2]
[419096773,1774875038466,-2052.57300684,0.00026712,2]
[419096774,1774875038476,-232.21010374,0.00026717,2]
[419096775,1774875038486,-500.0,0.00026717,2]
[419096776,1774875038497,-500.0,0.00026717,2]
[419096777,1774875038507,-500.0,0.00026717,2]
[419096778,1774875038518,-500.0,0.00026717,2]
[419096779,1774875038528,-500.0,0.00026717,2]
[419096780,1774875038539,-272.51368075,0.00026717,2]
[419096781,1774875038549,-500.0,0.00026717,2]
[419096782,1774875038560,-510.6720839,0.00026717,2]
[419096783,1774875038571,-500.0,0.00026717,2]
[419096784,1774875038581,-500.0,0.00026717,2]
[419096785,1774875038592,-243.434778,0.00026717,2]
[419096786,1774875038603,-500.0,0.00026717,2]
[419096787,1774875038614,-500.0,0.00026717,2]
[419096788,1774875038625,-500.0,0.00026717,2]
[419096789,1774875038635,-500.0,0.00026717,2]
[419096790,1774875038646,-211.62157426,0.00026717,2]
[419096791,1774875038656,-500.0,0.00026717,2]
[419096792,1774875038666,-500.0,0.00026717,2]
[419096793,1774875038678,-96983.09755558,0.00026718,2]
[419096794,1774875038691,-2849.8060003,0.00026718,2]
[419096795,1774875038703,-19787.20838559,0.00026718,2]
[419096796,1774875038858,-1520.08874999,0.00026718,2]
[419096797,1774875038870,-5131.64912051,0.00026718,2]
[419096833,1774875046274,-270.83333333,0.00026105,2]
[419096834,1774875046284,-16144.21977471,0.00026718,2]
[419096835,1774875482617,900.0349204,0.0003287,120]
[419096837,1774875523569,162.0,0.000328,120]
[419096838,1774875536635,163.26603059,0.000328,120]
[419096839,1774875663364,715.4,0.00032876,120]
[419096891,1774876232209,-300.0,8.479e-05,2]
[419096892,1774876232219,-539.0,8.479e-05,2]
[419096893,1774876232228,-10591.34586774,8.48e-05,2]
[419096894,1774876232315,-479.79260963,8.48e-05,2]
[419096916,1774876238374,-5429.5549518,8.48e-05,2]
[419096917,1774876238384,-500.0,0.00013698,2]
[419096918,1774876238393,-1000.0,0.00013699,2]
[419096919,1774876238404,-31852.48916118,0.00013699,2]
[419096920,1774876238414,-6947.6471934,0.00018768,2]
[419096921,1774876238424,-500.0,0.00019451,2]
[419096922,1774876238435,-172.3136927,0.00019451,2]
[419096923,1774876238445,-500.0,0.00019452,9]
[419096924,1774876238454,-11627.53645086,0.00019452,2]
[419096925,1774876238466,-5797.02498716,0.00019452,2]
[419096926,1774876238485,-14427.92772316,0.00019452,2]
[419096927,1774876238494,-31852.48916118,0.00019841,2]
[419096928,1774876238504,-31852.48916118,0.00020425,2]
[419096929,1774876238514,-31852.48916118,0.00021008,30]
[419096930,1774876238523,-151.0,0.00021918,2]
[419096931,1774876238533,-425.507458,0.00021918,2]
[419096932,1774876238543,-425.507458,0.00021918,2]
[419096933,1774876238552,-425.507458,0.00021918,2]
[419096934,1774876238561,-425.507458,0.00021918,2]
[419096935,1774876238571,-227.296,0.00021918,2]
[419096936,1774876238580,-200.0,0.00021918,2]
[419096937,1774876238590,-204.878,0.00021918,2]
[419096938,1774876238600,-256.5994,0.00021918,2]
[419096939,1774876238609,-235.91,0.00021918,2]
[419096940,1774876238618,-248.324,0.00021918,2]
[419096941,1774876238627,-253.29,0.00021918,2]
[419096942,1774876238637,-152.636,0.00021918,2]
[419096943,1774876238646,-256.5994,0.00021918,2]
[419096944,1774876238656,-1.53714985,0.00021918,2]
[419096945,1774876238668,-255.06225015,0.00021918,2]
[419096946,1774876238678,-425.507458,0.00021918,2]
[419096947,1774876238687,-425.507458,0.00021918,2]
[419096948,1774876238697,-203.694,0.00021918,2]
[419096949,1774876238707,-425.507458,0.00021918,2]
[419096950,1774876238716,-425.507458,0.00021918,2]
[419096951,1774876238727,-235.436,0.00021918,2]
[419096952,1774876238737,-200.0,0.00021918,2]
[419096953,1774876238747,-190.152,0.00021918,2]
[419096954,1774876238757,-232.48,0.00021918,2]
[419096955,1774876238767,-500.0,0.0002316,2]
[419096956,1774876238777,-390.87515818,0.0002316,2]
[419096957,1774876238786,-3711.55956173,0.000248,2]
[419096966,1774876241055,-1037.65727295,0.000248,2]
[419096967,1774876241065,-500.0,0.00024899,2]
[419096968,1774876241075,-209.6739389,0.00024899,2]
[419096969,1774876241085,-500.0,0.00024899,2]
[419096970,1774876241094,-337.92997806,0.00024899,2]
[419096971,1774876241106,-162.07002194,0.00024899,2]
[419096972,1774876241116,-212.81469763,0.00024899,2]
[419096973,1774876241125,-500.0,0.00024899,2]
[419096974,1774876241135,-500.0,0.00024899,2]
[419096975,1774876241144,-500.0,0.00024899,2]
[419096976,1774876241154,-425.507458,0.000249,2]
[419096977,1774876241163,-425.507458,0.000249,2]
[419096978,1774876241172,-425.507458,0.000249,2]
[419096979,1774876241181,-425.507458,0.000249,2]
[419096980,1774876241191,-13080.47376088,0.000249,2]
[419096981,1774876241202,-1258.43671265,0.000249,2]
[419096982,1774876241214,-523.75236559,0.000249,2]
[419096983,1774876241225,-7909.01872154,0.000249,2]
[419097026,1774876248658,-999.9375291,0.000249,2]
[419097027,1774876248715,-16325.12467085,0.000249,2]
[419097028,1774876248727,-813.5,0.000249,2]
[419097029,1774876248738,-285.0,0.000249,2]
[419097037,1774876249049,-10637.78173644,0.000249,2]
[419097038,1774876249126,-16307.09753455,0.000249,2]
[419097039,1774876249136,-152.0,0.00024932,7]
[419097040,1774876249146,-152.0,0.00025,7]
[419097041,1774876249155,-4749.21683467,0.00025436,2]
[419097042,1774876249164,-34070.0615158,0.00025518,2]
[419097043,1774876249174,-500.11250898,0.00025542,2]
[419097044,1774876249183,-500.0,0.00025542,2]
[419097045,1774876249193,-500.0,0.00025542,2]
[419097046,1774876249202,-213.57850816,0.00025542,2]
[419097047,1774876249211,-500.0,0.00025542,2]
[419097048,1774876249221,-164.05745078,0.00025715,5]
[419097049,1774876249230,-152.0,0.0002589,7]
[419097050,1774876249240,-500.0,0.00025943,2]
[419097051,1774876249250,-4020.0,0.00026,8]
[419097052,1774876249260,-4749.21683467,0.00026072,2]
[419097053,1774876249270,-270.83333333,0.00026166,2]
[419097054,1774876249279,-500.0,0.00026211,2]
[419097055,1774876249288,-500.7345095,0.00026211,2]
[419097056,1774876249297,-500.0,0.00026211,2]
[419097057,1774876249307,-202.04729524,0.000263,2]
[419097058,1774876249316,-3130.3078091,0.00026535,2]
[419097059,1774876249325,-156.587,0.00026592,2]
[419097060,1774876249335,-425.507458,0.00026607,2]
[419097061,1774876249345,-425.507458,0.00026607,2]
[419097062,1774876249354,-425.507458,0.00026607,2]
[419097063,1774876249364,-425.507458,0.00026607,2]
[419097064,1774876249373,-425.507458,0.00026608,2]
[419097065,1774876249383,-425.507458,0.00026608,2]
[419097066,1774876249392,-425.507458,0.00026608,2]
[419097067,1774876249402,-425.507453,0.00026608,2]
[419097068,1774876249411,-504.30869842,0.00026673,2]
[419097069,1774876249420,-4749.21683467,0.00026708,2]
[419097070,1774876249430,-290.51840243,0.00026938,2]
[419097071,1774876249440,-169.56687221,0.00026938,2]
[419097072,1774876249449,-320.99999997,0.00027,2]
[419097073,1774876249458,-600.0,0.00027149,30]
[419097074,1774876249467,-157.0,0.00027185,7]
[419097075,1774876249476,-656.22980313,0.00027268,5]
[419097076,1774876249486,-151.0,0.000273,15]
[419097077,1774876249495,-4749.21683467,0.00027344,2]
[419097078,1774876249504,-478.77705095,0.00027359,5]
[419097079,1774876249513,-219.70040295,0.00027397,2]
[419097080,1774876249523,-300.0,0.000274,7]
[419097081,1774876249532,-151.0,0.000274,19]
[419097082,1774876249542,-649.30689763,0.00027434,2]
[419097083,1774876249557,-11884.971555,0.00027434,2]
[419097239,1774876748925,40000.0,0.00032876,120]
[419097240,1774877036402,4000.0,0.00032876,120]
[419097242,1774877148913,5080.8,0.00032876,120]
[419097291,1774877432407,-324.64042675,0.00013426,2]
[419097294,1774877432420,-286.35957325,0.00013426,2]
[419097295,1774877432430,-300.0,0.00013694,2]
[419097296,1774877432440,-300.0,0.00013694,2]
[419097298,1774877432450,-300.0,0.00013694,2]
[419097300,1774877432460,-300.0,0.00013694,2]
[419097302,1774877432471,-300.0,0.00013694,2]
[419097304,1774877432482,-300.0,0.00013694,2]
[419097306,1774877432491,-300.0,0.00013694,2]
[419097308,1774877432501,-300.0,0.00013694,2]
[419097310,1774877432511,-15.71526962,0.00013694,2]
[419097383,1774877440990,-284.28473038,0.00013694,2]
[419097384,1774877441001,-300.0,0.00013694,2]
[419097385,1774877441011,-300.0,0.00013694,2]
[419097386,1774877441021,-300.0,0.00013694,2]
[419097387,1774877441031,-300.0,0.00013694,2]
[419097388,1774877441040,-300.0,0.00013694,2]
[419097389,1774877441051,-300.0,0.00013694,2]
[419097390,1774877441060,-1000.0,0.00013699,2]
[419097391,1774877441071,-152.0,0.000209,2]
[419097392,1774877441082,-152.0,0.000219,2]
[419097393,1774877441093,-242.0,0.00022,2]
[419097394,1774877441103,-403.0,0.00022,2]
[419097395,1774877441113,-152.0,0.000229,2]
[419097396,1774877441124,-242.0,0.00023,2]
[419097397,1774877441134,-403.0,0.00023,2]
[419097398,1774877441144,-1000.0,0.0002342,30]
[419097399,1774877441154,-159.94628366,0.000239,2]
[419097400,1774877441165,-242.0,0.00024,2]
[419097401,1774877441174,-403.0,0.00024,2]
[419097402,1774877441183,-242.0,0.00025,2]
[419097403,1774877441193,-403.0,0.00025,2]
[419097404,1774877441203,-152.0,0.00025,7]
[419097405,1774877441212,-108.84072398,0.00025751,2]
[419097559,1774877446889,-492.22153583,0.00025751,2]
[419097560,1774877446947,-253.25267189,0.00025751,2]
[419097561,1774877446957,-5279.67173793,0.00025869,2]
[419097566,1774877448633,-644.0,0.00025869,2]
[419097567,1774877448853,-350.89709366,0.00025869,2]
[419097569,1774877448865,-4242.4089765,0.00025869,2]
[419097570,1774877491998,889.7,0.00032876,120]
[419097571,1774877573136,9759.38311662,0.00032877,120]
[419097579,1774877652831,32702.1,0.00032877,120]
[419097580,1774877657694,300.0,0.00032603,120]
[419097581,1774877659931,300.0,0.00032603,120]
[419097582,1774877662185,300.0,0.00032603,120]
[419097583,1774877664827,300.0,0.00032603,120]
[419097584,1774877667087,300.0,0.00032603,120]
[419097585,1774877669342,300.0,0.00032603,120]
[419097586,1774877671634,300.0,0.00032603,120]
[419097587,1774877673912,300.0,0.00032603,120]
[419097588,1774877676797,300.0,0.00032603,120]
[419097589,1774877679075,410.02316451,0.00032603,120]
[419097590,1774877694107,225.29895132,0.00032,120]
[419097591,1774877926432,1002.0,0.00032877,120]
[419097592,1774877978091,786.56,0.00032,120]
[419097593,1774878066678,12651.683816,0.00032876,120]
[419097619,1774878507849,500.0,0.00032876,120]
[419097620,1774878508260,500.0,0.00032876,120]
[419097703,1774878638773,-300.0,9.999e-05,2]
[419097705,1774878638784,-560.0,9.999e-05,2]
[419097707,1774878638794,-8368.71106727,0.0001,2]
[419097711,1774878638826,-734.368,0.0001,2]
[419097723,1774878638934,-6177.95093273,0.0001,2]
[419097725,1774878638944,-300.0,0.00010199,2]
[419097727,1774878638954,-300.0,0.00010199,2]
[419097729,1774878638965,-300.0,0.00010199,2]
[419097731,1774878638976,-300.0,0.00010199,2]
[419097732,1774878638986,-300.0,0.00010199,2]
[419097734,1774878638996,-300.0,0.00010199,2]
[419097736,1774878639005,-300.0,0.00010199,2]
[419097737,1774878639014,-300.0,0.00010199,2]
[419097739,1774878639025,-300.0,0.00010199,2]
[419097740,1774878639034,-300.0,0.00010199,2]
[419097742,1774878639044,-300.0,0.00010199,2]
[419097744,1774878639055,-300.0,0.00010199,2]
[419097745,1774878639064,-300.0,0.00010199,2]
[419097747,1774878639074,-300.0,0.00010199,2]
[419097748,1774878639084,-300.0,0.00010199,2]
[419097750,1774878639096,-506.00898444,0.000102,2]
[419097752,1774878639106,-585.94083427,0.000102,2]
[419097754,1774878639116,-500.0,0.000102,2]
[419097755,1774878639126,-500.0,0.000102,2]
[419097757,1774878639135,-500.0,0.000102,2]
[419097758,1774878639145,-500.0,0.000102,2]
[419097760,1774878639155,-600.0,0.00010402,2]
[419097762,1774878639164,-1006.36458722,0.00010748,2]
[419097763,1774878639174,-502.57896594,0.00010748,2]
[419097765,1774878639184,-1000.0,0.00010748,2]
[419097766,1774878639193,-720.0,0.00011442,2]
[419097768,1774878639203,-864.0,0.00012586,2]
[419097770,1774878639213,-1000.0,0.00013699,2]
[419097771,1774878639223,-536.51955791,0.00013745,2]
[419097773,1774878639233,-1000.0,0.00013845,2]
[419097775,1774878639243,-1000.0,0.0001523,2]
[419097776,1774878639252,-244.0,0.0001523,2]
[419097778,1774878639262,-536.51955784,0.00016733,2]
[419097779,1774878639271,-1000.0,0.00016752,2]
[419097781,1774878639280,-492.0,0.00016752,2]
[419097783,1774878639290,-170.5282064,0.00018172,2]
[419097785,1774878639299,-1000.0,0.00018428,2]
[419097786,1774878639309,-284.68634852,0.00018428,2]
[419097834,1774878870303,300.0,0.00032877,120]
[419097843,1774879133709,-499.0,0.00013699,2]
[419097847,1774879568505,377.7989,0.00032877,120]
[419097850,1774879700717,3515.2,0.00032877,120]
[419097887,1774879832310,-441.70512035,0.00013699,2]
[419097888,1774879832364,-558.29487965,0.00013699,2]
[419097889,1774879832374,-115.86920702,0.00013699,2]
[419098236,1774879846278,-499.13079298,0.00013699,2]
[419098237,1774879846287,-1011.27067402,0.00013809,2]
[419098238,1774879846299,-2195.95582051,0.00014009,2]
[419098239,1774879846309,-3040.79783947,0.00014509,2]
[419098240,1774879846318,-3103.47981862,0.00015432,2]
[419098241,1774879846327,-300.0,0.0001574,2]
[419098242,1774879846337,-300.0,0.0001574,2]
[419098243,1774879846346,-300.0,0.0001574,2]
[419098244,1774879846355,-300.0,0.0001574,2]
[419098245,1774879846364,-196.24209743,0.0001574,2]
[419098246,1774879848185,5000.0,0.00032877,120]
[419098247,1774879855886,5000.0,0.00032877,120]
[419098248,1774879857946,5000.0,0.00032877,120]
[419098249,1774879860410,5000.0,0.00032877,120]
[419098250,1774879869978,200.0,0.00032877,120]
[419098251,1774880157710,1000.0,0.00032876,120]
[419098252,1774880258867,333.0,0.00032876,120]
[419098253,1774880391535,500.0,0.00032876,120]
[419098254,1774880625541,287.81933346,0.00032876,120]
[419098257,1774880854047,500.0,0.0003,120]
[419098258,1774880854523,500.0,0.0003,120]
[419098259,1774880854987,589.03077648,0.0003,120]
[419098260,1774880861647,810.71302782,0.0003,120]
[419098264,1774881026959,554670.0,0.00032876,120]
[419098473,1774881038254,-5000.0,9.9e-05,2]
[419098474,1774881038264,-258.05523658,0.0001,2]
[419098475,1774881038273,-560.0,0.0001,2]
[419098477,1774881038284,-1000.0,0.00013699,2]
[419098478,1774881038294,-300.0,0.00016837,2]
[419098479,1774881038304,-522.93312437,0.00016838,2]
[419098481,1774881038313,-928.72922888,0.00016838,2]
[419098483,1774881038323,-305.22036998,0.00016838,2]
[419098485,1774881038333,-542.07137709,0.00016838,2]
[419098487,1774881038342,-300.0,0.00018393,2]
[419098489,1774881038352,-151.0,0.0002,2]
[419098491,1774881038362,-502.44216819,0.0002085,2]
[419098493,1774881038371,-501.09369357,0.0002085,2]
[419098495,1774881038381,-609.24226568,0.0002107,2]
[419098498,1774881038391,-1095.53944214,0.0002107,2]
[419098500,1774881038401,-600.0,0.00021086,2]
[419098502,1774881038410,-500.0,0.00021771,2]
[419098504,1774881038419,-500.0,0.00021771,2]
[419098506,1774881038428,-500.0,0.00021875,2]
[419098508,1774881038437,-5195.68896322,0.00021952,33]
[419098510,1774881038446,-151.0,0.00021952,2]
[419098512,1774881038455,-151.0,0.00021952,2]
[419098514,1774881038465,-151.0,0.00021952,2]
[419098515,1774881038475,-280.576009,0.00021952,2]
[419098518,1774881038485,-151.0,0.00021952,2]
[419098520,1774881038494,-151.0,0.00021952,2]
[419098522,1774881038504,-151.0,0.00021952,2]
[419098524,1774881038513,-151.0,0.00021952,2]
[419098526,1774881038523,-151.0,0.00021952,2]
[419098528,1774881038533,-151.0,0.00021952,2]
[419098530,1774881038542,-6799.67119323,0.00022,2]
[419098532,1774881038553,-157.767987,0.00022,2]
[419098534,1774881038562,-151.0,0.00022,2]
[419098536,1774881038572,-151.0,0.00022,2]
[419098538,1774881038581,-151.0,0.00022,2]
[419098540,1774881038590,-151.0,0.00022,2]
[419098542,1774881038600,-151.0,0.00022,2]
[419098543,1774881038609,-151.0,0.00022,2]
[419098545,1774881038619,-153.0,0.00022,2]
[419098546,1774881038628,-217.0,0.00022,2]
[419098548,1774881038638,-151.0,0.00022179,2]
[419098550,1774881038648,-151.0,0.00022179,2]
[419098552,1774881038658,-230.794714,0.00022179,2]
[419098554,1774881038668,-603.30933288,0.00022179,2]
[419098556,1774881038678,-409.60050677,0.00022179,2]
[419098558,1774881038688,-1084.87084239,0.00022179,2]
[419098560,1774881038699,-736.54363127,0.00022179,2]
[419098562,1774881038708,-160.5532559,0.00022262,2]
[419098564,1774881038718,-642.21302359,0.00022262,2]
[419098566,1774881038727,-504.31289398,0.00022319,2]
[419098568,1774881038738,-1000.0,0.00022319,2]
[419098570,1774881038747,-1000.0,0.00022423,2]
[419098572,1774881038756,-568.26998585,0.00022528,2]
[419098574,1774881038766,-151.0,0.00022628,2]
[419098576,1774881038775,-1000.0,0.00022628,30]
[419098578,1774881038786,-151.0,0.00022662,2]
[419098580,1774881038796,-226.55066388,0.0002281,2]
[419098582,1774881038806,-209.31055875,0.00022861,2]
[419098584,1774881038815,-1000.0,0.00022971,2]
[419098587,1774881038825,-151.0,0.00023,2]
[419098589,1774881038835,-151.0,0.00023,2]
[419098591,1774881038844,-153.0,0.00023,2]
[419098593,1774881038854,-217.0,0.00023,2]
[419098595,1774881038863,-407.79119499,0.00023132,2]
[419098597,1774881038873,-198.077928,0.00023132,2]
[419098599,1774881038882,-720.0,0.00023194,10]
[419098601,1774881038892,-151.0,0.00023194,2]
[419098603,1774881038901,-151.0,0.00023347,2]
[419098605,1774881038910,-179.154629,0.00023347,2]
[419098607,1774881038919,-151.0,0.00023347,2]
[419098609,1774881038928,-151.0,0.00023347,2]
[419098611,1774881038938,-151.0,0.00023347,2]
[419098613,1774881038948,-635.95901443,0.00023434,2]
[419098615,1774881038957,-158.98975361,0.00023434,2]
[419098617,1774881038967,-539.70890303,0.00023434,2]
[419098619,1774881038976,-298.21530213,0.00023482,5]
[419098621,1774881038986,-4001.0,0.00024,8]
[419098623,1774881038995,-153.0,0.00024,2]
[419098625,1774881039004,-217.0,0.00024,2]
[419098627,1774881039013,-568.26998578,0.00024124,2]
[419098629,1774881039023,-500.0,0.00024393,5]
[419098631,1774881039032,-500.0,0.00024393,5]
[419098632,1774881039041,-500.0,0.00024393,5]
[419098634,1774881039050,-598.60895659,0.00024393,5]
[419098637,1774881039060,-500.0,0.00024393,5]
[419098639,1774881039070,-500.0,0.00024393,5]
[419098641,1774881039080,-500.0,0.00024393,5]
[419098643,1774881039090,-153.14320935,0.00024393,5]
[419098645,1774881039099,-515.6872145,0.00024418,2]
[419098647,1774881039109,-500.0,0.00024418,2]
[419098649,1774881039118,-500.0,0.00024418,2]
[419098651,1774881039128,-500.0,0.00024418,2]
[419098653,1774881039137,-500.0,0.00024418,2]
[419098655,1774881039148,-500.0,0.00024418,2]
[419098657,1774881039158,-534.38331643,0.00024418,2]
[419098659,1774881039167,-500.0,0.00024418,2]
[419098661,1774881039177,-6105.88273742,0.0002456,80]
[419098663,1774881039186,-270.83333333,0.00024871,2]
[419098665,1774881039197,-500.0,0.00024944,2]
[419098667,1774881039206,-500.0,0.00024944,2]
[419098669,1774881039216,-500.0,0.00024944,2]
[419098671,1774881039225,-500.0,0.00024944,2]
[419098673,1774881039235,-500.0,0.00024944,2]
[419098675,1774881039244,-500.0,0.00024944,2]
[419098677,1774881039254,-500.0,0.00024944,2]
[419098679,1774881039263,-500.0,0.00024944,2]
[419098681,1774881039272,-508.46637778,0.00024944,2]
[419098683,1774881039282,-500.0,0.00024944,2]
[419098685,1774881039291,-500.0,0.00024944,2]
[419098687,1774881039301,-500.0,0.00024944,2]
[419098689,1774881039310,-500.0,0.00024944,2]
[419098691,1774881039320,-500.0,0.00024944,2]
[419098693,1774881039329,-500.0,0.00024944,2]
[419098695,1774881039338,-500.0,0.00024944,2]
[419098697,1774881039348,-395.99079976,0.00024944,2]